Cogmind - Beta 16 @@@ ROGUE MODE // 2025.12.08 @ 22:08:23 Player: EuleBlut Result: Self-destructed Performance ------------- Evolutions (1) 500 Regions Visited (3) 600 Robots Destroyed (22) 110 Value Destroyed (511) 511 Prototype IDs (0) 0 Alien Tech Used (0) 0 Bonus (0) 0 TOTAL SCORE: 1721 Bonus ------- None Cogmind --------- Core Integrity 298/400 Matter 282/300 Energy 100/100 System Corruption 0% Temperature Cool (0) Movement Treading (160) Location -9/Materials Parts ------- > --- POWER (1) -------- (None) > --- PROPULSION (2) --- Improved Treads > --- UTILITY (4) ------ Small Storage Unit Weight Redist. System Signal Interpreter > --- WEAPON (2) ------- Light Assault Rifle > --- INVENTORY (8) ---- Light Ion Engine Light Treads Light Treads Wheel Wheel Heat Sink Shield Generator Small Laser Peak State ------------ > --- POWER ------------ Light Nuclear Core > --- PROPULSION ------- Improved Treads Improved Treads > --- UTILITY ---------- Small Storage Unit Weight Redist. System Signal Interpreter Terrain Scanner > --- WEAPON ----------- Small Laser Light Assault Rifle > --- INVENTORY -------- Light Ion Engine Wheel Wheel [Rating: 14] Favorites ----------- Power Light Ion Engine Engine Light Ion Engine Power Core Light Nuclear Core Propulsion Light Treads Treads Light Treads Utility Small Storage Unit Device Weight Redist. System Storage Small Storage Unit Processor Signal Interpreter Weapon Light Assault Rifle Energy Gun EM Pulse Gun Ballistic Gun Light Assault Rifle Launcher Grenade Launcher Build | -11 -10 -10 -9 ------- Run | Yrd Mat Min Mat Slots Evolved 2 | . . . 2 Power . | . . . . Propulsion . | . . . . Utility 2 | . . . 2 Weapon . | . . . . Parts Attached 18 | 6 4 2 6 Power 4 | 1 1 1 1 Engine 3 | 1 1 . 1 Core 1 | . . 1 . Reactor . | . . . . Propulsion 4 | 2 1 . 1 Treads 4 | 2 1 . 1 Leg . | . . . . Wheel . | . . . . Hover . | . . . . Flight . | . . . . Utility 5 | 1 1 . 3 Device 3 | . 1 . 2 Storage 1 | 1 . . . Processor 1 | . . . 1 Hackware . | . . . . Protection . | . . . . Artifact . | . . . . Weapon 5 | 2 1 1 1 Energy Gun 2 | 1 . 1 . Energy Cannon . | . . . . Ballistic Gun 2 | 1 . . 1 Ballistic Cannon . | . . . . Launcher 1 | . 1 . . Special Weapon . | . . . . Impact Weapon . | . . . . Slashing Weapon . | . . . . Piercing Weapon . | . . . . Special Melee Weapon . | . . . . Unidentified Prototypes . | . . . . Parts Lost 10 | . 2 3 5 Power 4 | . 1 1 2 Propulsion 2 | . . 1 1 Utility 1 | . . . 1 Weapon 3 | . 1 1 1 Highest Loss Streak 3 | . 1 3 2 To Critical Strikes . | . . . . Average Backups 5 | 2 6 6 6 Power . | . 1 1 . Propulsion 2 | 1 2 3 3 Utility 1 | . 1 2 1 Weapon . | . 1 . . Tool/Special . | . . . . Unused Backups 7 | . . . 7 Power 1 | . . . 1 Propulsion 4 | . . . 4 Utility 2 | . . . 2 Weapon . | . . . . Tool/Special . | . . . . Average Slot Usage (%) 88 | . 91 86 84 Engine 9 | . 14 4 3 Core 1 | . . 5 1 Treads 24 | . 28 19 22 Device 12 | . 6 14 21 Storage 12 | . 14 14 11 Processor 3 | . . . 10 Energy Gun 7 | . 8 14 4 Ballistic Gun 12 | . 14 14 8 Launcher 2 | . 5 . . Peak Build Rating 14 | 6 9 10 14 Average Rating 8 | 4 7 8 11 On Entrance 6 | . 6 9 10 Avg Prop Armor Cover (%) . | . . . . Naked Turns . | . . . . Heaviest Build 14 | 13 14 12 13 Greatest Support 52 | 40 49 29 52 Greatest Overweight (x) . | . . . . Average Overweight (x) . | . . . . Largest Inventory Capacity 8 | 8 8 8 8 Average Capacity 7 | 7 8 8 8 Most Carried 8 | 4 8 7 8 Average Carried 5 | 2 6 6 6 Final Capacity 8 | 8 8 8 8 Final Carried 8 | 4 7 6 8 Class Distribution -------------------- 100% | Mutant Dominant Class ---------------- Mutant | -10/Materials Mutant | -10/Mines Mutant | -9/Materials Resources | -11 -10 -10 -9 ----------- Run | Yrd Mat Min Mat Matter Collected 443 | 214 56 84 89 Remotely . | . . . . Salvage Created 560 | . 260 84 216 Parts 33 | . 15 4 14 Haulers Intercepted 1 | . 1 . . Recyclers Shooed 2 | . . 1 1 Parts Field Recycled . | . . . . Retrieved Matter . | . . . . Parts Self-Destructed . | . . . . Prevented . | . . . . Parts Restored . | . . . . Kills | -11 -10 -10 -9 ------- Run | Yrd Mat Min Mat Combat Hostiles Destroyed 15 | . 6 2 7 Guns 11 | . 2 2 7 AOE 4 | . 4 . . Classes Destroyed 7 | . 5 . 2 Worker 1 | . 1 . . Builder 4 | . 4 . . Hauler 1 | . 1 . . Watcher 1 | . 1 . . Swarmer 4 | . . . 4 Grunt 9 | . 6 2 1 Sentry 2 | . . . 2 Best Kill Streak 6 | . 6 2 5 Combat Bots Only 5 | . 2 2 5 Max Kills in Single Turn 5 | . 5 1 1 Gunslinging . | . . . . Exploded 2 | . 2 . . Melee . | . . . . Uniques/NPCs Destroyed . | . . . . Combat | -11 -10 -10 -9 -------- Run | Yrd Mat Min Mat Hostile Shots Fired 119 | . 16 25 78 Missed 34 | . 3 4 27 Hits 85 | . 13 21 51 Projectile 85 | . 13 21 51 Critical Strikes 1 | . . . 1 Damage Taken 1049 | . 239 283 527 Core 153 | . 21 30 102 Absorbed by Shields . | . . . . Core Remaining (%) 89 | 100 . 79 . Volleys Fired 77 | 1 13 16 47 Largest 2 | 1 2 2 2 Hottest 60 | 40 60 60 60 Shots Fired 101 | 1 18 31 51 Gun 95 | 1 12 31 51 Cannon . | . . . . Launcher 6 | . 6 . . Special . | . . . . Kinetic 61 | . 7 16 38 Thermal 26 | . . 13 13 Explosive 6 | . 6 . . Electromagnetic 8 | 1 5 2 . Robot Hit Streak 10 | . 6 9 10 Robot Miss Streak 4 | . 4 3 3 Penetration Max . | . . . . Secondary Targets 2 | . . 1 1 Max Gunslinging Chain 1 | . . 1 1 Shots Hit Robots 69 | . 11 21 37 Core Hits 35 | . 12 8 15 Critical Kills . | . . . . Critical Parts Destroyed 2 | . . 1 1 Critical Strikes 2 | . . 1 1 Destroy 2 | . . 1 1 Melee Attacks . | . . . . Impact . | . . . . Slashing . | . . . . Piercing . | . . . . Sneak Attacks . | . . . . Combat Hostiles . | . . . . Follow-up Attacks . | . . . . Damage Inflicted 1448 | . 930 190 328 Guns 577 | . 59 190 328 Cannons . | . . . . Explosions 871 | . 871 . . Melee . | . . . . Ramming . | . . . . Kinetic 377 | . 31 106 240 Thermal 601 | . 429 84 88 Explosive 442 | . 442 . . Electromagnetic 28 | . 28 . . Impact . | . . . . Slashing . | . . . . Piercing . | . . . . Highest Corruption . | . . . . Average Corruption . | . . . . Corruption Purged . | . . . . Corruption Blocked . | . . . . Overload Shots . | . . . . Overflow Damage 232 | . 232 . . Projectiles . | . . . . Explosions 232 | . 232 . . Melee . | . . . . Knockbacks . | . . . . Impact . | . . . . Kinetic . | . . . . Secondary . | . . . . Self-Inflicted Damage 91 | . 91 . . Shots 1 | . 1 . . Rammed . | . . . . Targets Rammed . | . . . . Kicked . | . . . . Crushed . | . . . . Highest Temperature 121 | . 70 121 27 Average Temperature 47 | . 33 68 10 Received Heat Transfer 363 | . 84 165 114 Siege Activations . | . . . . Martial Activations . | . . . . Shielding Activations . | . . . . Robots Disrupted . | . . . . Combat Hostiles . | . . . . Robots Corrupted . | . . . . Combat Hostiles . | . . . . Parts Fried . | . . . . Impact Corruptions . | . . . . Robots Melted . | . . . . Combat Hostiles . | . . . . Parts Melted 1 | . 1 . . Heat Transferred 650 | . 250 200 200 Parts Sabotaged . | . . . . Parts Stolen . | . . . . Parts Stripped . | . . . . Power Chain Reactions . | . . . . Alert | -11 -10 -10 -9 ------- Run | Yrd Mat Min Mat Maximum Alert Level . | . . . . Low Security (%) 100 | 100 100 100 100 Level 1 . | . . . . Level 2 . | . . . . Level 3 . | . . . . Level 4 . | . . . . Level 5 . | . . . . High Security . | . . . . Max Security . | . . . . Peak Influence 164 | . 164 41 90 Initial 31 | . . 31 3 Average 60 | . 91 23 51 Influence Increases 479 | . 259 50 170 Destroy 0b10 Robot/C 300 | . 120 40 140 Destroy 0b10 Robot/NC 35 | . 35 . . Destroy Leader 64 | . 24 10 30 Successful Hack 5 | . 5 . . Disable Machine 15 | . 15 . . Destroy Structure 60 | . 60 . . Influence Decreases 479 | . 176 122 181 Entered New Map 60 | . . 52 8 Time Decay 319 | . 156 40 123 Lost Part 100 | . 20 30 50 Squads Dispatched 1 | . 1 . . Investigation . | . . . . Extermination . | . . . . Reinforcement 1 | . 1 . . Assault . | . . . . Garrison . | . . . . Intercept . | . . . . Searches Triggered . | . . . . Construction Impeded . | . . . . Haulers Reinforced . | . . . . Active Scanning Responses . | . . . . Cargo Convoy Interrupts . | . . . . Stealth | -11 -10 -10 -9 --------- Run | Yrd Mat Min Mat Distress Signals 1 | . . . 1 Communications Jammed . | . . . . Distress Signals . | . . . . Times Spotted 21 | . 7 2 12 Peak Tracking Total 5 | . 2 2 5 Tactical Retreats . | . . . . Traps | -11 -10 -10 -9 ------- Run | Yrd Mat Min Mat Traps Triggered . | . . . . Indirectly . | . . . . Trap Hack Attempts . | . . . . Triggered . | . . . . Disarmed . | . . . . Reprogrammed . | . . . . Reused . | . . . . Traps Extracted . | . . . . Installed . | . . . . Triggered . | . . . . Machines | -11 -10 -10 -9 ---------- Run | Yrd Mat Min Mat Machines Disabled 1 | . 1 . . Max in Single Turn 1 | . 1 . . Machines Repaired . | . . . . Machines Dismantled . | . . . . Machines Sabotaged . | . . . . Overloaded Fab Kills . | . . . . Hacking | -11 -10 -10 -9 --------- Run | Yrd Mat Min Mat Machines Accessed 2 | . 2 . . Terminals 2 | . 2 . . Fabricators . | . . . . Repair Stations . | . . . . Recycling Units . | . . . . Scanalyzers . | . . . . Garrison Access . | . . . . Total Hacks 6 | . 6 . . Successful 3 | . 3 . . Failed 3 | . 3 . . Catastrophic . | . . . . Database Lockouts . | . . . . Manual . | . . . . Terminals 6 | . 6 . . Fabricators . | . . . . Repair Stations . | . . . . Recycling Units . | . . . . Scanalyzers . | . . . . Garrison Access . | . . . . Terminal Hacks 3 | . 3 . . Record 1 | . 1 . . Alert Level 1 | . 1 . . Hauler Manifests 1 | . 1 . . Fabricator Hacks . | . . . . Repair Station Hacks . | . . . . Recycling Unit Hacks . | . . . . Scanalyzer . | . . . . Garrison Access Hacks . | . . . . Unauthorized Hacks . | . . . . Terminals . | . . . . Fabricators . | . . . . Repair Stations . | . . . . Recycling Units . | . . . . Scanalyzers . | . . . . Garrison Access . | . . . . Data Cores Recovered . | . . . . Used . | . . . . Hacking Detections 2 | . 2 . . Full Trace Events . | . . . . Feedback Events . | . . . . Feedback Blocked . | . . . . Robot Schematics Acquired . | . . . . Robots Built . | . . . . Authchips . | . . . . Time . | . . . . Total Robot Build Rating . | . . . . Part Schematics Acquired . | . . . . Parts Built . | . . . . Authchips . | . . . . Time . | . . . . Total Part Build Rating . | . . . . Part Studies Acquired . | . . . . Parts Repaired . | . . . . Time . | . . . . Parts Recycled . | . . . . Recycled Matter . | . . . . Retrieved Matter . | . . . . Retrieved Components . | . . . . Parts Scanalyzed . | . . . . Part Schematics Acquired . | . . . . Parts Damaged . | . . . . Bothacking | -11 -10 -10 -9 ------------ Run | Yrd Mat Min Mat Used RIF Installer . | . . . . Robots Hacked . | . . . . Non-combat . | . . . . Combat . | . . . . Robot Hacks Applied . | . . . . Relay Couplers Released . | . . . . Fabnet Peak Effective % . | . . . . Robots Rewired . | . . . . Allies Hacked . | . . . . Hacks Repelled . | . . . . Allies | -11 -10 -10 -9 -------- Run | Yrd Mat Min Mat Total Allies . | . . . . Largest Group . | . . . . Highest-Rated Group . | . . . . Highest-Rated Ally . | . . . . Total Orders . | . . . . Ally Attacks . | . . . . Total Damage . | . . . . Kills . | . . . . Allies Corrupted . | . . . . Allies Melted . | . . . . Intel | -11 -10 -10 -9 ------- Run | Yrd Mat Min Mat Active Infowar (turns) 180 | . . . 180 Terrain 180 | . . . 180 Robot Analysis Total . | . . . . Derelict Logs Recovered . | . . . . Drone Launches . | . . . . Drone Recoveries . | . . . . Exploration | -11 -10 -10 -9 ------------- Run | Yrd Mat Min Mat Turns Passed 904 | 123 424 88 269 Spaces Moved 405 | 68 240 26 71 Core 2 | 2 . . . Treads 403 | 66 240 26 71 Legs . | . . . . Wheels . | . . . . Hover . | . . . . Flight . | . . . . Fastest Speed 50 | 50 160 160 160 Average Speed 159 | 156 160 160 160 Slowest Speed 160 | 160 160 160 160 Overloaded Moves . | . . . . Propulsion Burnouts . | . . . . Robots Hopped . | . . . . Potential Cave-ins . | . . . . Cave-ins Triggered . | . . . . Exploration Rate (%) 15 | 4 36 12 9 Regions Visited 3 Branch Regions 1 Pre-discovered Areas 1 | . . 1 . Known Exits Taken . | . . . . Unknown Exits Taken 3 | 1 1 1 . Scrap Searched . | . . . . Spaces Dug . | . . . . Terrain Destroyed 64 | . 64 . . Melee . | . . . . Projectile . | . . . . AOE 64 | . 64 . . Terrain Rammed . | . . . . Walls Destroyed . | . . . . Machines Disabled . | . . . . Actions | -11 -10 -10 -9 --------- Run | Yrd Mat Min Mat Total 577 | 84 264 45 184 Wait 52 | . . 1 51 Move 402 | 67 239 25 71 Hop . | . . . . Pick Up 23 | 10 5 1 7 Fast Attach 1 | . 1 . . Attach 17 | 6 3 2 6 Detach 2 | . 1 . 1 Swap 1 | . 1 . . Drop 2 | . 1 . 1 Fire 77 | 1 13 16 47 Melee . | . . . . Ram . | . . . . Kick . | . . . . Crush . | . . . . Escape Stasis . | . . . . Rewire . | . . . . Trap . | . . . . Miscellaneous . | . . . . Route ------- -11/Scrapyard -10/Materials -10/Mines -9/Materials History --------- Turn | Location | Event 28 | -11/Scrapyard | Discovered new exit (range 16) 124 | -11/Scrapyard | Entered Materials 307 | -10/Materials | Build established: Mutant 319 | -10/Materials | Discovered new exit (range 16) 548 | -10/Materials | Entered Mines 592 | -10/Mines | Discovered new exit (range 15) 603 | -10/Mines | Lost 3 parts (1p1n1w) 617 | -10/Mines | Learned location of Storage (-8) 636 | -10/Mines | Entered Materials 636 | -9/Materials | Evolved 2 slots: Utility x2 905 | -9/Materials | Self-destructed Last Messages --------------- Acquired 17 matter. Acquired Lgt. Ion Engine. Acquired 2 matter. Acquired 10 matter. G-34 Mercenary destroyed. Acquired 5 matter. Connecting with Scanalyzer... Current location identified: Materials Y-45 Defender suffers critical hit (Destroy). Destroyed Beam Rifle. K-01 Serf collects debris. Lgt. Ion Engine destroyed. Y-45 Defender destroyed. K-01 Serf collects debris. Acquired Shield Generator. Dropped Terrain Scanner. Acquired Shield Generator. R-06 Scavenger collects Terrain Scanner. Imp. Treads destroyed. Shield Generator destroyed. Map ----- +----------------------------------------------------+ | ?????????????????????????????????????????????#???? | | ???????????????????????????????????????#?????????# | | ?????????????????????????????????????????????????? | | ?????????????????????????????????????????????????# | | ??????????????????????????????????????????????#??? | | ??????????????????????????????????????????#????### | | ???????????????????????????????????????????????# | | ???????????????????????????????????????????????# | | ???????????????????????????????????????????????# | | ?????????????????????????????????????????#?????# | | ?????????????????????????????????????????#?????# | | ??????????????????????????????????????????????## | | ???????????????????????????????????????????????# | | ???????????????????????????????????????????#???# | | ??????????????????????????????????????????#????# | | ???????????????????????????????????????????????# | | ??????????????????????????????????????#????????# | | ??????????????????????????????????????????????## | | ?????????????????????????????????????#?? ??????# | | ???????????????????????????????????????????????# | | ????????????????"????????????????????? ??? ???## | | ????????????????? ???????????????????? ????????# | | ?????????????????????????????????????????? ????# | | ???????????????????????????????????????"?? ????# | | ??????????????####+##############?#??????"?????# | | ?????????? k /wg@]]! #??????????? ??# | | ?????????? ###g ] #????? ?? ????##%% | | ??????????????????????# ]! ###########/### | | ??????????????????????# # * | | ??????????????????????# ru + !%= | | ??????????????????????# # [ | | ??????????????????????# # #######+##### | | ??????????????????????# #!#??# ##### | | ??????????????????????###########%#??# "" #???? | | ???????????????????????????????? ??# """#???? | | ???????????????????????????????? ??# S"#???? | | ??????????????????????????????+ ??+ #???? | | ??????????????????????????????? ??# #???? | | ????????????????????????? ????# ??# #???? | | ??????????????????????????????#####??# """ #???# | | ?????????????????????????????????????# """ #???? | | ?????????????????????????????????????# """ #???? | | ?????????????????????????????????????# #??#? | | ?????????????????????????????????????#########???? | | ???????????????????????????????????#?????????????? | | ?????????????????????????????????????????????????? | | ?????????????????????????????????????????????????? | | ?????????????????????????????????????????????????? | | ?????????????????????????????????????????????????? | | ?????????????????????????????????????????????????? | +----------------------------------------------------+ Best States ------------- Heat Dissipation 28 Energy Generation 14 Energy Capacity 250 Matter Stores 300 Matter Capacity 300 Sight Range 16 Terrain Scan Range 14 Terrain Scan Density 10 Additional Mass Support 6 Evasion (%) 40 Recoil Reduction 2 Item Schematics ----------------- None Robot Schematics ------------------ None Fabricated ------------ Nothing Repaired ---------- Nothing Studied --------- None Alien Tech Used ----------------- None Achievements -------------- Loot Pinata Shopping List Challenges ------------ None Game ------ Seed AssaultExpertShell Manual? 0 Play Time 00:09:39 Cumulative 2.6 hours Start 2025.12.08 @ 21:58:58 End 2025.12.08 @ 22:08:23 Sessions 1 Manual Loads 0 Difficulty Rogue Special Mode None Game No. 8 Rogue 8 Adventurer 0 Explorer 0 Win Type - Total 0 Types 0/0/0/0/0/0/0/0/0/0 Lore% 2 Gallery% 6 Achievement% 6 Wizard Run 0 Options --------- Layout 1 ASCII 0 Keyboard 0 Movement Mouse Keybinds 0 Fullscreen 2 Font 24/Smallcaps Map View 50x35 Zoom Use 0% Tactical HUD 0 Map Filters NONE Filters NONE Steam 1 RUN: 3b745e45-8644-404d-9b7b-5dd500501263